[Event "MPL 41st IND-ch Teams 2022"]
[Site "Jalgaon"]
[Date "2022.04.13"]
[Round "9.3"]
[White "Srikanth, K.."]
[Black "Sankalp Gupta"]
[Result "0-1"]
[ECO "B10"]
[WhiteElo "1877"]
[BlackElo "2536"]
[Annotator "TA"]
[PlyCount "60"]
[EventDate "2022.04.08"]
[EventType "team-tourn"]
[EventCountry "IND"]
[SourceTitle "playchess.com"]
[Source "ChessBase"]
[SourceQuality "1"]
[TimeControl "5400+30"]

{[%evp 9,60,-13,0,0,2,-29,-21,-11,-20,-18,-14,-28,-28,-22,-11,-19,-19,-41,-27,-102,-98,-124,-45,-143,-123,-137,-125,-189,-180,-204,-199,-208,-204,-406,-398,-387,-414,-412,-400,-539,-539,-532,-526,-577,-564,-515,-397,-457,-426,-868,-846,-946,-838]} 1. e4 {[%emt 0:00:05]} c6 {[%emt 0:02:13]} 2. Nc3 {[%emt 0:00:16]} d5 {[%emt 0:00:04]} 3. f4 {[%emt 0:00:04]} dxe4 {[%emt 0:00:19]} 4. Nxe4 {[%emt 0:00:07]} Nf6 {[%emt 0:00:03]} 5. Nf2 {[%emt 0:00:12]} g6 {[%emt 0:00:02]} 6. Nf3 {[%emt 0:00:12] B11: Caro-Kann: Two Knights Variation.} Bg7 {[%emt 0:00:03]} 7. Bc4 {[%emt 0:00:19]} O-O {[%emt 0:00:53]} 8. d4 {[%emt 0:02:51] The position is equal.} c5 {[%emt 0:00:09]} 9. dxc5 {[%emt 0:00:57]} Qa5+ {[%emt 0:00:08]} 10. c3 {[%emt 0:00:31]} Qxc5 {[%emt 0:00:52]} 11. Qe2 {[%emt 0:00:05]} b6 {[%emt 0:07:38]} 12. O-O {[%emt 0:04:18]} Bb7 {[%emt 0:00:31]} 13. Be3 {[%emt 0:00:19]} Qc7 {[%emt 0:01:12] [#]} 14. f5 $146 {[%emt 0:03:49]} (14. Rad1 $11) ({Predecessor:} 14. Ne5 Nbd7 15. Bd4 Rad8 16. Nh3 Bd5 17. Bd3 Nc5 18. Bc2 Nfd7 19. Ng5 Nxe5 20. fxe5 {1-0 (33) Siebarth,R (2284)-Geshnizjani,R (2039) Willingen 2008}) 14... gxf5 $17 {[%emt 0:02:47]} 15. Nh3 {[%emt 0:01:08]} Ng4 {[%emt 0:01:41]} (15... Nbd7 $17 {Strongly threatening ...Ng4.} 16. Bd3 e6) 16. Bd3 {[%emt 0:02:53]} (16. Bf4 $1 $15 e5 17. Bg3) 16... Nxe3 {[%emt 0:06:51]} 17. Qxe3 {[%emt 0:00:14]} e6 $36 {[%emt 0:00:01][%cal Be7e6,Be6e5,Be5e4,Be4d3][%mdl 2080] Black is on the roll.} 18. Qg5 {[%emt 0:01:33]} (18. Nf4 $17) 18... h6 {[%emt 0:01:48]} 19. Qh5 {[%emt 0:00:31]} Nd7 {[%emt 0:00:11]} 20. Qh4 {[%emt 0:08:52]} Nf6 {[%emt 0:00:57]} 21. Nf4 $2 {[%emt 0:00:09] [#]} (21. Nf2) 21... e5 $19 {[%emt 0:00:48]} 22. Nh5 {[%emt 0:00:40]} Nxh5 {[%emt 0:00:08]} 23. Qxh5 {[%emt 0:00:23]} e4 {[%emt 0:07:04]} 24. Nh4 {[%emt 0:00:09]} exd3 {[%emt 0:05:42]} 25. Nxf5 {[%emt 0:00:08]} Be4 {[%emt 0:00:48]} 26. Nxh6+ {[%emt 0:03:16]} Bxh6 {[%emt 0:00:43]} 27. Qxh6 {[%emt 0:00:05]} f5 {[%emt 0:01:31]} 28. Rf4 {[%emt 0:00:52]} Qg7 {[%emt 0:01:18][%csl Ge4][%cal Rg7g2] [#] Black is clearly winning.} 29. Qh3 {[%emt 0:00:07]} (29. Qxg7+ $142 Kxg7 30. a4) 29... Rf6 {[%emt 0:00:16]} 30. g3 {[%emt 0:02:13]} Rd8 {Weighted Error Value: White=0.62/Black=0.11 (very precise)} 0-1

[Event "MPL 41st IND-ch Teams 2022"]
[Site "Jalgaon"]
[Date "2022.04.13"]
[Round "9.4"]
[White "Raja Rithvik R"]
[Black "Jashanpreet Singh"]
[Result "1-0"]
[ECO "E70"]
[WhiteElo "2490"]
[BlackElo "1709"]
[Annotator "TA"]
[PlyCount "169"]
[EventDate "2022.04.08"]
[EventType "team-tourn"]
[EventCountry "IND"]
[SourceTitle "playchess.com"]
[Source "ChessBase"]
[SourceQuality "1"]
[TimeControl "5400+30"]

{[%evp 13,169,48,53,24,31,33,62,4,27,12,29,-2,7,-28,22,25,39,31,46,34,34,37,88,75,77,79,60,47,77,69,165,156,195,200,191,191,173,102,227,204,205,164,155,148,154,158,147,-316,-308,-363,-348,-337,-352,-501,-433,-485,-482,-450,-449,-418,0,0,0,0,0,0,0,0,0,0,0,0,0,0,0,-26,-93,-93,6,0,0,0,46,46,167,167,167,167,167,167,167,167,167,167,167,167,167,167,167,167,167,167,167,167,167,85,135,0,167,167,167,167,167,167,167,167,167,167,167,167,610,588,398,592,1112,985,4149,4149,29974,29969,29985,29981,29982,29982,29983,29980,29982,29981,29984,29984,29985,29981,29984,29980,29983,29981,29985,29986,29988,29988,29988,29989,29989,29990,29991,29992,29998,29999]} 1. d4 {[%emt 0:01:52]} Nf6 {[%emt 0:00:14]} 2. c4 {[%emt 0:00:07]} g6 {[%emt 0:00:05]} 3. Nc3 {[%emt 0:00:33]} Bg7 {[%emt 0:00:06]} 4. e4 {[%emt 0:00:24]} d6 {[%emt 0:00:06]} 5. Nge2 {[%emt 0:00:06]} O-O {[%emt 0:00:40]} 6. Ng3 {[%emt 0:00:06]} Nc6 {[%emt 0:01:28] 6...a6 is a critical line.} 7. d5 {[%emt 0:01:35]} Ne5 {[%emt 0:00:32]} 8. f4 {[%emt 0:03:34] E70: King's Indian: Miscellaneous lines with 4 e4, including 5 Nge2 and 5 Bd3 0-0 6 Nge2.} Ned7 {[%emt 0:00:33]} 9. Be2 {[%emt 0:02:19]} e6 {[%emt 0:06:41]} 10. O-O {[%emt 0:01:20]} (10. dxe6 $1 $14 fxe6 11. O-O) 10... exd5 $11 {[%emt 0:01:26]} 11. cxd5 {[%emt 0:04:00]} Nc5 {[%emt 0:08:39]} 12. Bf3 {[%emt 0:01:37]} h5 {[%emt 0:05:27]} 13. Re1 {[%emt 0:02:49]} Re8 {[%emt 0:04:56]} (13... Ng4 $142) 14. h3 {[%emt 0:04:03] [#]} h4 $146 {[%emt 0:21:21]} ({Predecessor:} 14... Nh7 15. Be3 b6 16. Qc2 h4 17. Nge2 f5 18. Nd4 Bb7 19. Bf2 fxe4 20. Bxe4 Nxe4 21. Rxe4 Rxe4 22. Qxe4 {½-½ (52) Limeres Guiance,C (2290)-Olaizola Ortega,L (2290) Euskadi 1999}) 15. Nh1 {[%emt 0:02:41]} b5 {[%emt 0:08:49]} 16. a3 {[%emt 0:03:55]} a5 {[%emt 0:02:04]} 17. Nf2 {[%emt 0:03:45]} a4 {[%emt 0:02:17]} (17... Nfd7 $14) 18. Be3 {[%emt 0:05:19][%cal Oe4e5] Black must now prevent e5!} Nfd7 {[%emt 0:03:49] Inhibits e5.} 19. Qc2 {[%emt 0:02:56]} Rb8 {[%emt 0:00:48]} 20. Na2 {[%emt 0:03:06]} Nb3 {[%emt 0:02:33]} 21. Rad1 {[%emt 0:00:50]} Ndc5 {[%emt 0:01:14] [#]} (21... Nb6 $1 $14) 22. Nb4 $1 $36 {[%emt 0:04:35][%mdl 2048] White is on the roll.} Bd7 {[%emt 0:03:09]} 23. Nc6 {[%emt 0:07:31]} Bxc6 {[%emt 0:00:35]} 24. dxc6 {[%emt 0:00:02]} Qe7 {[%emt 0:04:29]} 25. Rd5 {[%emt 0:03:26]} (25. Ng4 $18) 25... Na5 {[%emt 0:04:07]} (25... Ne6 $16 {was worth a try.}) 26. e5 {[%emt 0:02:21][%cal Re3c5]} (26. Bxc5 dxc5 27. Rd7 (27. Rxc5 Bxb2 28. Rd5 Bxa3 $15) 27... Qe6 $16) 26... Ne6 {[%emt 0:03:09]} 27. f5 {[%emt 0:06:43]} gxf5 {[%emt 0:00:50]} 28. exd6 {[%emt 0:00:14] &Bianco is much more active.} (28. Qxf5 Nxc6 29. exd6 cxd6 $16) 28... cxd6 {[%emt 0:00:21][%cal Oe6d4]} 29. Qxf5 {[%emt 0:01:47]} Nxc6 {[%emt 0:03:52]} 30. Qh5 $2 {[%emt 0:08:13][%mdl 8192] [#]} ({But not} 30. Rxb5 $2 Ned4 31. Bxc6 Rxb5 $19) (30. Be4 $16 {And now Qh7+ would win.} Nf8 31. Bd2 (31. Rxb5 Nd4 $11)) 30... Nf4 $1 $19 {[%emt 0:01:56][%mdl 512] Pair of Knights!} 31. Qf5 {[%emt 0:03:42]} (31. Qg4 Nxd5) 31... Nxd5 {[%emt 0:00:27]} 32. Bxd5 {[%emt 0:00:02]} Nd4 {[%emt 0:01:15]} 33. Qd3 {[%emt 0:08:21]} (33. Qg6 $142 Qf6 34. Qxf6 Bxf6 35. Ne4) 33... Qe5 {[%emt 0:01:40]} 34. Ba2 {[%emt 0:00:07]} Nf5 {[%emt 0:02:08][%cal Rf5e3]} 35. Ng4 {[%emt 0:01:05]} Qe4 {[%emt 0:01:36]} 36. Qf1 {[%emt 0:00:08]} Bd4 $2 {[%emt 0:01:37]} (36... d5 $19 37. Bf2 Qf4) 37. Qxf5 $11 {[%emt 0:03:42]} Bxe3+ {[%emt 0:01:33]} (37... Qxf5 $5 38. Nh6+ Kf8 39. Nxf5 Bxe3+ 40. Rxe3 (40. Nxe3 b4 $11) 40... Rxe3 41. Nxe3 b4 $11) 38. Rxe3 {[%emt 0:00:35] Really sharp!} Qxf5 {[%emt 0:00:14]} 39. Nh6+ $1 {[%emt 0:00:13]} Kf8 {[%emt 0:00:05] ( -> ...Qf4)} 40. Nxf5 {[%emt 0:00:20]} Rxe3 {[%emt 0:00:16]} 41. Nxe3 {[%emt 0:00:01]} b4 $1 {[%emt 0:00:33]} 42. Bd5 {[%emt 0:00:55]} bxa3 {[%emt 0:01:24]} 43. bxa3 {[%emt 0:00:01]} Rc8 {[%emt 0:00:45]} 44. Bc4 {[%emt 0:01:04]} f5 $1 {[%emt 0:00:36][%mdl 1024] ...f4 is the strong threat. Black has compensation.} 45. Bb5 {[%emt 0:07:22]} f4 {[%emt 0:01:18]} (45... Rc3 $17 46. Nc4 d5) 46. Nf5 {[%emt 0:03:09]} Rc5 {[%emt 0:00:42][%csl LRb5,LRf5]} 47. Bd7 {[%emt 0:00:01]} ({Wrong is} 47. Nxd6 $2 Ke7 48. Bxa4 Kxd6 $19) 47... Rc3 {[%emt 0:00:43]} (47... Rc1+ $11 48. Kh2 f3 49. gxf3 Rc2+ 50. Kg1 Rc1+ 51. Kh2 Rc2+ 52. Kg1 Rc1+ 53. Kh2) 48. Bxa4 $14 {[%emt 0:00:06]} Rxa3 {[%emt 0:00:03] [#]} ({Better is} 48... f3 $1 $14) 49. Bc6 $1 $18 {[%emt 0:00:09]} Ra6 {[%emt 0:00:43]} 50. Bf3 {[%emt 0:01:20]} Kf7 {[%emt 0:00:13]} 51. Nxh4 {[%emt 0:00:01]} Kf6 {[%emt 0:00:11] Threatens to win with ...Kg5.} 52. Kf2 {[%emt 0:00:57]} Kg5 {[%emt 0:00:23] [#]} 53. Be2 $1 {[%emt 0:00:01]} Ra2 (53... Rb6 54. Nf3+) 54. Nf3+ {[%emt 0:00:02]} Kf5 {[%emt 0:00:44]} 55. Ne1 {[%emt 0:01:45]} Ke4 {[%emt 0:00:58]} 56. h4 {[%emt 0:00:02][%cal Bh3h4,Bh4h5][%mdl 32]} d5 {[%emt 0:00:18]} 57. h5 {[%emt 0:00:36] Hoping for h6.} Kf5 {[%emt 0:01:10]} 58. Nd3 {[%emt 0:00:08]} Ra4 {[%emt 0:00:31]} 59. Bd1 {[%emt 0:01:12]} (59. Bf3 $18) 59... Rd4 {[%emt 0:00:20]} ({Black should try} 59... Ra2+ 60. Kf3 Ra3) 60. Be2 {[%emt 0:00:34]} Ra4 $1 {[%emt 0:00:08] White now steadily converts the win.} 61. Bf3 {[%emt 0:00:36]} Rd4 {[%emt 0:00:14]} 62. Ke2 {[%emt 0:00:11]} Kg5 {[%emt 0:01:11]} 63. Nc5 {[%emt 0:00:22] Threatening mate with Ne6+.} Rc4 {[%emt 0:01:04]} 64. Ne6+ {[%emt 0:00:17]} Kf5 {[%emt 0:00:23]} 65. Bxd5 {[%emt 0:00:14]} Rc2+ {[%emt 0:00:11]} 66. Kd3 {[%emt 0:00:01]} Rf2 $2 {[%emt 0:00:53]} (66... Rc1 67. Nd4+ Ke5) 67. Nd4+ {[%emt 0:00:37]} Kg5 {[%emt 0:00:30]} 68. Bf3 {[%emt 0:00:12] Strongly threatening Ke4.} Rb2 {[%emt 0:00:14]} 69. Ke4 {[%emt 0:00:15] aiming for Ke5.} Rb6 {[%emt 0:00:24]} 70. Ke5 {[%emt 0:00:09]} Kh6 {[%emt 0:01:05]} 71. Kxf4 {[%emt 0:00:11] White mates.} Rf6+ {[%emt 0:00:13]} 72. Kg4 {[%emt 0:00:09]} Rb6 {[%emt 0:00:12]} 73. Nf5+ {[%emt 0:00:00]} Kh7 {[%emt 0:00:06]} 74. Kg5 {[%emt 0:00:01]} Ra6 {[%emt 0:00:23]} 75. g4 {[%emt 0:00:07][%cal Bg2g4,Bg4g5,Bg5g6,Bg6g7][%mdl 32]} Ra3 {[%emt 0:00:07]} 76. Be4 {[%emt 0:00:01]} Kh8 {[%emt 0:00:24]} 77. Bd5 {[%emt 0:00:19]} Ra6 {[%emt 0:00:27]} 78. h6 {[%emt 0:00:52]} Rb6 {[%emt 0:00:27]} 79. Kh5 {[%emt 0:00:10]} Ra6 {[%emt 0:00:14]} 80. g5 {[%emt 0:00:30]} Rb6 {[%emt 0:00:24]} 81. Be4 {[%emt 0:00:07]} Re6 {[%emt 0:00:28]} 82. Bd3 {[%emt 0:00:08]} Re5 {[%emt 0:00:28]} 83. g6 {[%emt 0:00:39]} Kg8 {[%emt 0:00:29]} 84. Bc4+ {[%emt 0:00:06]} Kh8 {[%emt 0:00:40]} 85. g7+ {[%emt 0:00:05] Weighted Error Value: White=0.29 (precise) /Black=0.21 (precise)} 1-0

[Event "MPL 41st IND-ch Teams 2022"]
[Site "Jalgaon"]
[Date "2022.04.13"]
[Round "9.5"]
[White "Vignesh N R"]
[Black "Raj Prakhar"]
[Result "1-0"]
[ECO "B12"]
[WhiteElo "2444"]
[BlackElo "1550"]
[Annotator "TA"]
[PlyCount "43"]
[EventDate "2022.04.08"]
[EventType "team-tourn"]
[EventCountry "IND"]
[SourceTitle "playchess.com"]
[Source "ChessBase"]
[SourceQuality "1"]
[TimeControl "5400+30"]

{[%evp 10,43,15,15,15,8,16,15,43,9,30,14,33,28,91,87,87,68,110,100,84,89,327,326,771,743,829,837,836,826,821,817,1924,1827,1368,1162]} 1. e4 {[%emt 0:00:29]} c6 {[%emt 0:00:15]} 2. d4 {[%emt 0:00:08]} d5 {[%emt 0:00:11]} 3. e5 {[%emt 0:00:15]} Bf5 {[%emt 0:00:25]} 4. Nd2 {[%emt 0:00:09][%cal Bb1d2,Bd2b3,Bb3d4][%mdl 32]} e6 {[%emt 0:03:52]} 5. Nb3 {[%emt 0:00:03]} Nd7 {[%emt 0:06:37]} 6. Nf3 {[%emt 0:00:12]} a6 {[%emt 0:01:13] B12: Caro-Kann: Advance Variation.} 7. Be2 {[%emt 0:01:06]} c5 {[%emt 0:03:22]} 8. dxc5 {[%emt 0:00:04]} Nxc5 {[%emt 0:00:49] The position is equal.} 9. Nbd4 {[%emt 0:00:40]} Bg6 {[%emt 0:00:53]} 10. O-O {[%emt 0:00:04]} Ne7 {[%emt 0:02:16]} 11. Be3 {[%emt 0:00:59] [#]} Nc6 $146 {[%emt 0:02:48]} (11... Nc8 $11 {remains equal.}) ({Predecessor:} 11... Qc7 12. Rc1 Rd8 13. c4 dxc4 14. Bxc4 Nc6 15. Qe2 Nxe5 16. Nxe5 Qxe5 17. f4 Qe4 {1-0 (35) Korchmar,V (2450)-Silvestre,C (1942) Chess.com INT 2021}) 12. Nxc6 $16 {[%emt 0:02:59]} bxc6 {[%emt 0:00:38]} 13. c4 {[%emt 0:00:02]} Nd7 {[%emt 0:06:21]} 14. Rc1 {[%emt 0:05:45]} Be7 {[%emt 0:01:57]} 15. Qa4 {[%emt 0:00:18] Hoping for Nd4.} Rc8 $2 {[%emt 0:04:30]} (15... O-O $16 {was worth a try.}) 16. cxd5 $18 {[%emt 0:00:29]} cxd5 {[%emt 0:00:40] [#]} (16... exd5 17. Bxa6 Rc7 18. Rxc6 O-O 19. Rxc7 Qxc7) 17. Bb6 $1 {[%emt 0:07:16][%mdl 512] White is clearly winning.} Rxc1 {[%emt 0:05:02]} (17... Qxb6 18. Rxc8+) 18. Bxd8 {[%emt 0:00:11]} Rxf1+ {[%emt 0:00:16]} 19. Bxf1 {[%emt 0:00:05][%cal Be2f1,Bf1a6,Ba6b5][%mdl 32] Strongly threatening Bxe7.} Bxd8 {[%emt 0:02:09]} 20. Bxa6 {[%emt 0:00:04]} Ke7 {[%emt 0:01:26]} 21. Qb4+ {[%emt 0:00:07]} Ke8 {[%emt 0:00:27]} 22. Bb5 {[%emt 0:00:04] Black did not feel at home in the position after the opening.  Weighted Error Value: White=0.06 (flawless) /Black=0.63} 1-0

[Event "MPL 41st IND-ch Teams 2022"]
[Site "Jalgaon"]
[Date "2022.04.13"]
[Round "9.6"]
[White "Dev Raj"]
[Black "Swapnil, S. Dhopade"]
[Result "0-1"]
[ECO "B12"]
[WhiteElo "1430"]
[BlackElo "2495"]
[Annotator "TA"]
[PlyCount "76"]
[EventDate "2022.04.08"]
[EventType "team-tourn"]
[EventCountry "IND"]
[SourceTitle "playchess.com"]
[Source "ChessBase"]
[SourceQuality "1"]
[TimeControl "5400+30"]

{[%evp 9,76,6,15,0,0,0,5,0,0,0,0,-35,-24,-54,-17,-18,0,0,-14,-39,-39,-39,-31,-115,-111,-115,-131,-117,-131,-128,-110,-118,-108,-114,-96,-102,-102,-93,-61,-62,-59,-61,-19,-19,-19,-62,-52,-67,-66,-77,-88,-197,-187,-195,0,-185,-195,-177,-88,-248,-245,-1358,-660,-29968,-29969,-29965,-29968,-6103,-2130]} 1. e4 c6 {[%cal Bc7c6,Bc6c5][%mdl 32]} 2. d4 d5 3. e5 c5 4. c3 Nc6 5. Nf3 Bg4 6. Nbd2 {B12: Caro-Kann: Advance Variation.} cxd4 7. cxd4 e6 ({But not} 7... Qa5 8. Qb3 $14) 8. Be2 {The position is equal.} Nge7 9. O-O {[%cal Ob2b4]} Nf5 10. Qa4 Qb6 11. Rd1 Be7 12. h3 Bxf3 13. Nxf3 O-O 14. g4 Nh4 15. Nxh4 Bxh4 {[#]} 16. Qb5 $146 (16. Be3 $1 $15) ({Predecessor:} 16. Be3 f6 17. exf6 Rxf6 18. g5 Rf7 19. Bg4 Ne7 20. Qb3 Qd6 21. Rf1 Raf8 22. Rae1 {0-1 (48) Hurtik,M (1932)-Kiani,K (1988) Ceske Budejovice 2021}) 16... Nxd4 $17 17. Qxb6 Nxe2+ 18. Kf1 axb6 {&Nero is more active.} 19. Kxe2 Be7 20. a3 Rfc8 21. Be3 Bc5 22. Rac1 Kf8 23. Rd3 Bxe3 24. Rxc8+ Rxc8 25. Kxe3 {[%mdl 4096] Endgame KR-KR} Ke7 26. Rb3 Rc6 27. Kd3 Kd7 28. f3 f6 29. f4 Kc7 30. h4 (30. Kd2 $17) 30... Rc4 $19 31. Rc3 Rc6 32. Rb3 {[#]} fxe5 $1 33. fxe5 b5 (33... Rc4 $19 34. Rc3 b5) 34. Rc3 $2 {White does not recover from this.} ({Not} 34. Rxb5 $2 Rc4 35. g5 (35. Rb4 $2 Rxb4 36. axb4 Kc6 $19) 35... Rxh4 36. Rc5+ Kb6 $19) (34. Rb4 $17 {was the only defense.}) 34... Kb6 {...Rxc3+ is the strong threat.} 35. b3 $2 (35. b4) 35... b4 (35... Ka5 $142 36. Rc2 Rxc2 37. Kxc2 b4) 36. axb4 Rxc3+ 37. Kxc3 Kb5 38. Kc2 Kxb4 {Weighted Error Value: White=0.72/Black=0.27 (precise)} 0-1

[Event "MPL 41st IND-ch Teams 2022"]
[Site "Jalgaon"]
[Date "2022.04.13"]
[Round "9.7"]
[White "Visakh N R"]
[Black "Rupesh B Ramchandra"]
[Result "1-0"]
[ECO "E01"]
[WhiteElo "2522"]
[BlackElo "1393"]
[Annotator "TA"]
[PlyCount "97"]
[EventDate "2022.04.08"]
[EventType "team-tourn"]
[EventCountry "IND"]
[SourceTitle "playchess.com"]
[Source "ChessBase"]
[SourceQuality "1"]
[TimeControl "5400+30"]

{[%evp 25,97,68,84,48,80,66,82,77,82,79,82,76,85,98,94,98,96,79,76,73,85,89,96,88,128,118,144,155,145,143,141,129,209,209,210,211,243,234,243,250,292,280,283,287,316,315,364,370,547,536,550,558,528,528,675,670,670,666,588,421,410,403,402,398,354,369,638,530,656,631,1333,1229,987,936]} 1. d4 Nf6 2. c4 e6 3. g3 d5 4. Bg2 c6 5. Nf3 Bb4+ 6. Nbd2 O-O 7. O-O Nbd7 8. Qc2 Re8 9. e4 dxe4 10. Nxe4 Nxe4 11. Qxe4 Nf6 12. Qe2 Bd6 13. Rd1 Qe7 14. Qc2 {E09: Closed Catalan: Main Line: 7 Qc2 c6 8 Nbd2.} h6 15. b3 Bd7 16. Bb2 {[#] White is better.} Ba3 $146 ({Predecessor:} 16... Rad8 17. Re1 Ba3 18. Bc3 Bb4 19. Ne5 Bxc3 20. Qxc3 Qd6 21. Rad1 Qc7 22. b4 a6 23. h3 Bc8 {1-0 (65) Havansi,E (2240)-Denda,R (2043) Dresden 2010}) 17. Bxa3 Qxa3 18. Ne5 Qe7 19. Rab1 Red8 20. b4 Be8 21. a4 Nd7 22. Nd3 {&Bianco is much more active.} Qf6 23. Qc3 Rac8 24. c5 g5 25. Rbc1 Qg7 26. Ne5 {[%cal Bd3e5,Be5c4,Bc4d6][%mdl 32]} Nf6 27. Nc4 Nd5 28. Qe1 Rc7 (28... Qf8 $16 29. Nd6 Rxd6 30. cxd6 Qxd6) 29. Nd6 $18 Ne7 30. b5 {[#] Black must now prevent Qa5.} Nc8 31. Qa5 b6 32. Nxe8 Rxe8 33. cxb6 axb6 34. Qb4 Rd8 35. bxc6 Qf8 36. Qb3 Ra7 (36... Rd6 {was worth a try.} 37. d5 Qe8) 37. d5 exd5 38. Bxd5 Rc7 39. Bf3 Rd6 40. Rxd6 Qxd6 41. Rd1 Qe7 42. Qd5 Na7 43. Qd8+ Kg7 44. Qxe7 ({Not} 44. Qd4+ Qf6 45. Kg2 Qxd4 46. Rxd4 Kf8 $18) 44... Rxe7 45. Rd7 Re1+ (45... Kf6 {was necessary.} 46. Rb7 Nc8) 46. Kg2 {White is clearly winning.} Nc8 47. Bh5 Ne7 48. c7 {[%cal Od7e7] White wants to mate with Rxe7!} Kf6 {[#]} 49. Rxe7 $1 {[%mdl 512] Weighted Error Value: White=0.08 (flawless) /Black=0.35} 1-0

[Event "MPL 41st IND-ch Teams 2022"]
[Site "Jalgaon"]
[Date "2022.04.13"]
[Round "9.8"]
[White "Piyush Kumar"]
[Black "Shyaamnikhil P"]
[Result "0-1"]
[ECO "B28"]
[WhiteElo "1535"]
[BlackElo "2442"]
[Annotator "TA"]
[PlyCount "65"]
[EventDate "2022.04.08"]
[EventType "team-tourn"]
[EventCountry "IND"]
[SourceTitle "playchess.com"]
[Source "ChessBase"]
[SourceQuality "1"]
[TimeControl "5400+30"]

{[%evp 20,65,17,0,16,0,31,27,36,21,32,0,12,7,14,7,34,17,54,0,10,-6,0,0,0,-28,0,2,44,-12,-14,-17,-16,-42,-30,-198,-204,-169,-79,-397,-411,-396,-405,-398,-398,-595,-554,-532]} 1. e4 c5 2. Nf3 a6 3. Nc3 d6 4. d4 cxd4 5. Nxd4 Nc6 6. Be2 Nf6 7. Be3 Bd7 8. O-O e6 9. f4 Be7 10. a4 {has lost popularity (10.Qe1).} O-O 11. Kh1 Re8 {B85: Sicilian Scheveningen: 6 Be2 a6, lines with early Be3.} 12. Nb3 b6 13. g4 {[%cal Bg2g4,Bg4g5][%mdl 32] [#] And now g5 would win.} Bc8 {White has an edge.} 14. Bf3 {[%cal Oe4e5] [#]} Nd7 $146 {Inhibits e5.} ({Predecessor:} 14... Bb7 15. Bg2 Qc7 16. g5 Nd7 17. Rf3 Bf8 18. Rh3 g6 19. Qe1 Bg7 20. Qh4 Nf8 21. f5 Bxc3 22. f6 Bxf6 23. gxf6 Qd8 24. Bxb6 {1-0 (26) Maki,V (2390)-Nyysti,S (2165) Tampere 1998}) 15. Qe2 Bb7 16. Qg2 Qc7 17. g5 Nc5 18. Nd4 Bf8 (18... Nxd4 {is more complex.} 19. Bxd4 b5 20. axb5 axb5 21. Nxb5 Qb6) 19. Nde2 (19. Nxc6 $14 Bxc6 20. f5) 19... Nb4 20. Ng3 Rac8 {[%cal Od6d5]} 21. Nh5 {[%cal Oh5f6] Threatens to win with Nf6+!} Nd7 {[%cal Od6d5] Prevents Nf6+.} 22. Rf2 {[%cal Oh5f6]} Qd8 23. Rd1 Rc4 (23... g6 $5 {[%cal Rg6h5]}) 24. Bd4 ({White should try} 24. Nb1 $14) 24... e5 $11 25. fxe5 Nxe5 26. Ng3 Nbc6 27. Nf5 (27. Be3 $11 {and White stays safe.}) 27... Nxd4 $19 28. Rxd4 g6 (28... Rxd4 $19 {has better winning chances.} 29. Nxd4 d5 30. Nxd5 Nxf3 31. Qxf3 Bxd5 32. exd5 Re1+ 33. Rf1 (33. Kg2 $2 Qxg5+ 34. Qg3 Qxd5+ 35. Qf3 Re4 $19) 33... Rxf1+ 34. Qxf1 Qxg5) 29. Be2 {[%mdl 8192] [#]} Rxc3 $1 {[%mdl 512]} 30. bxc3 gxf5 31. Rxf5 Bg7 {Hoping for ...Ng6.} 32. Bh5 (32. Rf1 $142) 32... Qd7 {...Ng6 is the strong threat.} 33. Be2 {Weighted Error Value: White=0.56/Black=0.16 (very precise)} 0-1